bitfinex/quotes_SOLUSD_20240826
["timestamp","ask_amount","ask_price","bid_price","bid_amount"]
[1724686112092,15.8713,157.52,157.43,6.3517]
[1724686112390,45.25098,157.51,157.43,6.3517]
[1724686112889,6.3504,157.47,157.43,22.2316]
[1724686113363,6.3501,157.48,157.43,22.2316]
[1724686113693,6.3501,157.48,157.44,6.3515]
[1724686114174,6.3499,157.49,157.44,6.3515]
[1724686114574,6.3501,157.48,157.44,6.3515]
[1724686115195,6.3497,157.49,157.45,6.3511]
[1724686115358,6.3494,157.5,157.45,6.3511]
[1724686116060,6.3496,157.49,157.45,6.3511]
[1724686117271,6.3496,157.49,157.46,1.27004318]
[1724686117479,6.3494,157.5,157.46,7.62054318]
[1724686117955,6.3494,157.5,157.46,1.27004318]
[1724686118365,6.3494,157.5,157.46,7.62074318]
[1724686119088,6.3504,157.47,157.43,6.3517]
[1724686119392,6.35,157.48,157.44,6.3515]
[1724686121476,6.3497,157.49,157.44,6.3515]
[1724686124395,6.35,157.48,157.44,6.3515]
[1724686124600,6.3506,157.47,157.42,15.8803]
[1724686124808,6.3506,157.47,157.43,7.62184117]
[1724686125104,6.3501,157.48,157.44,6.3516]
[1724686125791,6.3496,157.49,157.45,6.3511]
[1724686126377,6.3496,157.49,157.44,22.2302]
[1724686127302,6.35,157.48,157.44,22.2302]
[1724686128601,16.12218,157.52,157.44,22.2302]
[1724686128602,16.12218,157.52,157.44,15.8788]
[1724686128799,16.12218,157.52,157.45,1.27014042]
[1724686129601,6.3496,157.49,157.45,6.3511]
[1724686129997,0.12549,157.51,157.44,15.8788]
[1724686130196,45.12549,157.51,157.44,15.8788]
[1724686130379,6.3505,157.47,157.44,15.8788]
[1724686130574,6.35,157.48,157.44,22.2304]
[1724686130812,6.3509,157.46,157.4,23.0732]
[1724686131002,0.12549,157.5,157.4,23.0732]
[1724686131003,6.3512,157.45,157.41,7.9430301]
[1724686131184,6.3516,157.44,157.42,1.5903301]
[1724686131510,6.3516,157.44,157.4,45.3084]
[1724686131706,6.3516,157.44,157.41,1.59056873]
[1724686131885,6.3516,157.44,157.4,45.3084]
[1724686132090,6.3516,157.44,157.42,1.59057608]
[1724686132416,6.3516,157.44,157.4,45.3084]
[1724686132585,6.3516,157.44,157.41,1.59062378]
[1724686132785,6.3516,157.44,157.4,45.3084]
[1724686132986,6.3516,157.44,157.41,1.5906325]
[1724686133233,6.3516,157.44,157.4,38.9553]
[1724686133908,383.8,157.49,157.42,15.8806]
[1724686134087,6.3501,157.48,157.43,6.3517]
[1724686134286,6.3501,157.48,157.44,6.3515]
[1724686135611,390.1496,157.49,157.45,6.3512]
[1724686136413,6.3492,157.5,157.46,6.3508]
[1724686136788,6.3489,157.51,157.44,15.8786]
[1724686136986,6.3489,157.51,157.47,6.3503]
[1724686137703,6.3492,157.5,157.46,22.2273]
[1724686139010,0.12549,157.53,157.46,15.8766]
[1724686139209,6.3487,157.52,157.47,7.62014576]
[1724686139388,6.3489,157.51,157.47,7.62014576]
[1724686139788,6.3489,157.51,157.47,6.3502]
[1724686140189,6.3489,157.51,157.46,22.2273]
[1724686141114,6.3492,157.5,157.46,22.2273]
[1724686143815,0.12549,157.53,157.46,15.8766]
[1724686144017,45.25098,157.54,157.46,15.8766]
[1724686144939,6.3493,157.5,157.46,22.2271]
[1724686145812,6.3488,157.51,157.47,6.3503]
[1724686146017,6.3494,157.5,157.46,22.2272]
[1724686147938,3.29348514,157.55,157.49,12.40737666]
[1724686148131,415.5214,157.63,157.48,0.12549]
[1724686148132,3.29348514,157.58,157.48,0.12549]
[1724686148320,415.5214,157.63,157.49,13.99713221]
[1724686148321,3.29348514,157.59,157.49,13.99713221]
[1724686148523,6.346,157.58,157.53,15.8699]
[1724686148724,6.346,157.58,157.53,22.2178]
[1724686149137,6.3464,157.57,157.53,15.8699]
[1724686149343,6.3464,157.57,157.53,22.2177]
[1724686150423,6.3458,157.59,157.53,15.8699]
[1724686151341,6.3452,157.6,157.55,15.8676]
[1724686151519,6.3447,157.61,157.57,6.3463]
[1724686151848,6.3447,157.61,157.56,6.3467]
[1724686152015,6.3452,157.6,157.56,6.3467]
[1724686153007,6.3448,157.61,157.57,6.3462]
[1724686153211,6.3448,157.61,157.54,21.9101]
[1724686153212,15.8613,157.62,157.54,6.564]
[1724686153518,6.3463,157.58,157.54,12.9115]
[1724686153843,6.3455,157.6,157.55,6.3469]
[1724686154019,6.3455,157.6,157.55,6.347]
[1724686154343,6.3455,157.59,157.55,6.347]
[1724686155146,6.3452,157.6,157.55,6.347]
[1724686155513,6.3455,157.59,157.55,6.347]
[1724686155920,6.3461,157.58,157.54,28.7797]
[1724686156324,6.3464,157.57,157.54,6.564]
[1724686156838,6.3456,157.59,157.54,6.564]
[1724686157057,6.3452,157.6,157.55,15.8676]
[1724686157418,6.3448,157.61,157.56,6.3465]
[1724686157739,6.3443,157.62,157.54,6.564]
[1724686157926,6.3443,157.62,157.57,6.346]
[1724686158330,6.3447,157.61,157.57,6.346]
[1724686158828,0.813037,157.64,157.57,6.346]
[1724686158829,6.3443,157.63,157.58,6.3457]
[1724686159219,6.3445,157.62,157.58,6.3457]
[1724686160749,6.3445,157.62,157.57,21.4888]
[1724686163148,0.813037,157.64,157.57,21.4888]
[1724686163325,0.12549,157.63,157.57,21.4888]
[1724686163824,6.3447,157.61,157.57,21.4888]
[1724686165138,6.3447,157.61,157.57,15.1426]
[1724686165435,6.3453,157.6,157.57,15.1426]
[1724686166141,26.76420387,157.6,157.48,22.1008]
[1724686166331,0.12549,157.58,157.48,22.1008]
[1724686166536,0.12549,157.56,157.48,22.1008]
[1724686166738,0.12549,157.54,157.48,22.1008]
[1724686166950,45.25098,157.54,157.48,22.1008]
[1724686167250,0.12549,157.53,157.44,22.2299]
[1724686167451,4.67592199,157.53,157.45,6.351]
[1724686167655,15.8689,157.55,157.44,15.8783]
[1724686167656,6.3484,157.52,157.44,15.8783]
[1724686167955,6.3484,157.52,157.46,6.3507]
[1724686169635,6.3492,157.5,157.45,6.3512]
[1724686169971,15.8689,157.55,157.44,15.8783]
[1724686170120,6.3504,157.47,157.42,27.7043]
[1724686170459,6.3504,157.47,157.42,21.352]
[1724686171452,6.3504,157.47,157.42,27.7042]
[1724686172722,6.35,157.48,157.42,27.7042]
[1724686172918,6.35,157.48,157.43,6.352]
[1724686173321,6.3505,157.47,157.42,27.7044]
[1724686174758,6.351,157.46,157.42,21.352]
[1724686175130,6.3513,157.45,157.42,21.352]
[1724686175460,6.3509,157.46,157.42,21.352]
[1724686175663,6.3504,157.47,157.42,27.704]
[1724686175955,6.3504,157.47,157.43,6.3519]
[1724686176256,15.99689,157.52,157.43,6.3519]
[1724686176257,6.35,157.48,157.43,6.3519]
[1724686176953,6.35,157.48,157.44,6.3516]
[1724686177251,6.35,157.48,157.43,6.3519]
[1724686177844,6.35,157.48,157.44,6.3514]
[1724686178749,15.8714,157.52,157.44,6.3514]
[1724686178750,6.3496,157.5,157.44,15.8784]
[1724686178958,6.3488,157.51,157.44,15.8784]
[1724686180240,6.3488,157.51,157.47,6.3503]
[1724686180438,6.3488,157.51,157.46,15.8766]
[1724686180439,6.3485,157.52,157.46,15.8766]
[1724686181132,6.3485,157.52,157.47,6.3503]
[1724686181333,6.3488,157.51,157.47,6.3503]
[1724686182666,6.3488,157.51,157.46,22.2272]
[1724686184030,6.3485,157.52,157.47,6.3503]
[1724686185648,6.3488,157.51,157.47,6.3503]
[1724686188655,6.348,157.53,157.49,6.3495]
[1724686190168,6.3477,157.54,157.49,6.3495]
[1724686190954,6.3477,157.54,157.5,6.3492]
[1724686192267,0.12549,157.56,157.48,15.8747]
[1724686192467,6.3484,157.52,157.48,22.2244]
[1724686192786,390.1464,157.57,157.52,22.2185]
[1724686194378,390.1464,157.57,157.53,6.3478]
[1724686196577,383.8,157.57,157.53,6.3478]
[1724686197168,6.346,157.58,157.53,6.3478]
[1724686197363,6.346,157.58,157.52,15.8705]
[1724686197364,6.346,157.58,157.54,6.3474]
[1724686198790,0.12549,157.57,157.49,31.2819]
[1724686199093,6.3473,157.55,157.51,6.3487]
[1724686200071,6.3473,157.55,157.49,31.2819]
[1724686200270,6.3476,157.54,157.5,6.3491]
[1724686200611,6.35,157.48,157.45,15.4674]
[1724686200891,6.3496,157.49,157.45,15.4674]
[1724686201193,6.47369,157.53,157.49,6.3495]
[1724686201365,6.3482,157.53,157.47,15.8753]
[1724686202069,6.3482,157.53,157.48,6.3496]
[1724686202272,6.3484,157.52,157.48,6.3496]
[1724686202598,31.0192,157.57,157.45,15.4674]
[1724686202599,0.12549,157.51,157.45,15.4674]
[1724686202795,6.3488,157.51,157.46,6.3507]
[1724686203768,20.12549,157.54,157.48,6.3497]
[1724686204091,51.47379,157.53,157.48,6.3499]
[1724686204300,6.3488,157.51,157.47,15.8754]
[1724686204510,51.47379,157.53,157.47,22.2256]
[1724686205000,6.3476,157.54,157.49,6.3495]
[1724686205589,6.3476,157.54,157.48,6.3499]
[1724686206498,6.3484,157.52,157.47,22.2258]
[1724686206797,6.3488,157.51,157.47,15.8754]
[1724686207580,0.12549,157.53,157.45,15.4674]
[1724686207799,6.3493,157.5,157.45,15.4674]
[1724686208398,6.3493,157.5,157.45,21.8185]
[1724686208788,383.8,157.56,157.45,15.4674]
[1724686208987,383.8,157.56,157.49,6.3492]
[1724686209210,383.8,157.58,157.48,15.8742]
[1724686209404,383.8,157.58,157.49,6.0613]
[1724686209610,6.3467,157.57,157.5,15.8723]
[1724686209797,6.3464,157.57,157.53,6.3479]
[1724686210499,390.146,157.58,157.53,6.3479]
[1724686210698,383.8,157.58,157.53,6.3479]
[1724686211095,383.8,157.58,157.55,6.3471]
[1724686211297,391.244937,157.64,157.54,15.8684]
[1724686211502,384.613037,157.64,157.54,15.8684]
[1724686211704,6.3447,157.61,157.56,6.3464]
[1724686212687,384.613037,157.64,157.54,22.2156]
[1724686212894,6.3456,157.59,157.54,22.2156]
[1724686213289,6.3446,157.62,157.57,6.3462]
[1724686214916,384.613037,157.64,157.56,12.5324]
[1724686215094,6.3455,157.6,157.56,6.1857]
[1724686215493,6.346,157.58,157.54,22.2158]
[1724686215895,6.3456,157.59,157.54,22.2158]
[1724686216205,6.346,157.58,157.54,22.2158]
[1724686216400,6.3456,157.59,157.54,22.2158]
[1724686217316,6.3452,157.6,157.55,6.3471]
[1724686217497,6.3456,157.59,157.54,22.2159]
[1724686217699,6.3465,157.57,157.52,22.3148]
[1724686218423,16.11358,157.61,157.52,15.9668]
[1724686218597,0.12549,157.59,157.52,15.9668]
[1724686218800,0.12549,157.59,157.53,15.8693]
[1724686219098,6.47099,157.59,157.54,6.3474]
[1724686219320,6.3455,157.59,157.54,6.3474]
[1724686219706,6.3452,157.6,157.55,6.347]
[1724686222127,6.3456,157.59,157.54,6.3472]
[1724686223332,0.12549,157.61,157.47,31.7512]
[1724686223627,65.25098,157.61,157.48,21.58963829]
[1724686223799,65.25098,157.61,157.52,15.8704]
[1724686223999,6.3466,157.57,157.52,22.2187]
[1724686224194,6.3466,157.57,157.53,6.3479]
[1724686224820,6.3466,157.57,157.52,15.8704]
[1724686224821,6.346,157.58,157.54,6.3475]
[1724686225017,45.12549,157.61,157.53,22.2332]
[1724686225198,6.3459,157.59,157.54,6.3472]
[1724686225400,6.346,157.58,157.53,22.2332]
[1724686225811,30.8857,157.62,157.55,6.3471]
[1724686226018,6.3452,157.6,157.55,6.3471]
[1724686228022,15.8615,157.62,157.54,15.8684]
[1724686228209,6.3455,157.59,157.54,15.8684]
[1724686228410,15.8615,157.62,157.54,22.2159]
[1724686228727,0.12549,157.6,157.54,15.8684]
[1724686228925,45.12549,157.61,157.54,22.2159]
[1724686229142,6.3458,157.59,157.54,22.2159]
[1724686229631,6.3458,157.59,157.55,6.3471]
[1724686231822,6.3448,157.61,157.57,29.2137]
[1724686232204,6.3448,157.61,157.57,22.8674]
[1724686232717,6.3453,157.6,157.55,6.347]
[1724686233034,394.32190203,157.64,157.52,22.8674]
[1724686233228,6.3469,157.56,157.52,29.2156]
[1724686233440,0.12549,157.6,157.52,22.8674]
[1724686233731,0.12549,157.62,157.56,6.3467]
[1724686233905,6.3452,157.6,157.56,15.8668]
[1724686235423,6.3456,157.59,157.56,15.8668]
[1724686236155,6.3452,157.6,157.56,15.8668]
[1724686236647,384.613037,157.64,157.57,6.346]
[1724686236832,0.813037,157.64,157.57,6.346]
[1724686237151,6.3443,157.63,157.58,6.3458]
[1724686238665,0.813037,157.64,157.6,22.4867]
[1724686239135,0.813037,157.64,157.6,28.8317]
[1724686240832,0.813037,157.64,157.6,6.345]
[1724686241252,0.813037,157.64,157.61,15.8612]
[1724686241462,0.813037,157.64,157.62,6.344]
[1724686241755,0.813037,157.64,157.63,6.3439]
[1724686242126,0.813037,157.64,157.63,28.0203]
[1724686243139,399.6513,157.72,157.65,15.8569]
[1724686243140,6.3404,157.72,157.65,15.8569]
[1724686243347,261.2415,157.78,157.63,21.80189]
[1724686243348,6.34,157.73,157.68,6.3419]
[1724686244770,15.8477,157.76,157.67,15.8553]
[1724686245562,0.12549,157.75,157.67,15.8553]
[1724686246066,6.3405,157.72,157.67,22.1973]
[1724686246863,6.3405,157.72,157.68,6.3419]
[1724686247068,6.3405,157.72,157.67,22.1973]
[1724686247471,6.3407,157.71,157.67,22.1973]
[1724686248162,390.1391,157.75,157.7,6.3408]
[1724686248380,6.34,157.73,157.69,15.8531]
[1724686248547,383.8,157.75,157.68,6.3415]
[1724686249482,6.3404,157.72,157.68,6.3415]
[1724686249673,6.3404,157.72,157.67,6.3423]
[1724686249988,0.12549,157.74,157.66,15.8563]
[1724686249989,6.3411,157.7,157.66,15.8563]
[1724686250274,6.3411,157.7,157.66,22.199]
[1724686251050,6.3419,157.68,157.64,6.3431]
[1724686252754,6.3416,157.69,157.64,6.3431]
[1724686254253,6.3412,157.7,157.66,6.3426]
[1724686254687,6.3415,157.69,157.65,22.2002]
[1724686254979,6.342,157.68,157.65,15.8572]
[1724686255360,6.3416,157.69,157.65,15.8572]
[1724686256061,15.8493,157.74,157.65,22.2]
[1724686256062,6.3412,157.7,157.65,22.2]
[1724686256779,6.3412,157.7,157.66,6.3427]
[1724686258302,6.3408,157.71,157.66,6.3427]
[1724686258588,6.3408,157.71,157.67,6.3422]
[1724686258794,6.3396,157.74,157.67,15.8555]
[1724686259370,6.3396,157.74,157.69,6.3414]
[1724686259579,6.3391,157.75,157.7,6.341]
[1724686259896,390.1391,157.75,157.7,6.341]
[1724686260202,390.1391,157.75,157.71,6.3406]
[1724686260722,383.8,157.75,157.7,15.0135]
[1724686260877,383.8,157.75,157.71,6.3403]
[1724686261074,383.8,157.75,157.7,15.0135]
[1724686261375,383.8,157.75,157.71,6.3407]
[1724686261686,390.1392,157.75,157.7,21.6305]
[1724686261877,383.8,157.75,157.71,6.3406]
[1724686262078,383.8,157.75,157.71,15.8511]
[1724686262692,383.8,157.75,157.71,22.1917]
[1724686263008,383.8,157.75,157.72,6.34]
[1724686263213,383.8,157.76,157.72,6.34]
[1724686263580,390.1388,157.76,157.72,6.34]
[1724686264120,390.1387,157.76,157.72,6.34]
[1724686265735,0.813037,157.79,157.73,6.3396]
[1724686265898,6.3383,157.78,157.73,6.3396]
[1724686266323,7.150537,157.79,157.73,15.8492]
[1724686266830,6.3379,157.78,157.74,6.3394]
[1724686267424,6.3379,157.78,157.73,22.1891]
[1724686268825,0.813037,157.79,157.73,22.1891]
[1724686269313,6.3379,157.78,157.74,6.3394]
[1724686269516,7.150637,157.79,157.74,6.3394]
[1724686269902,6.3379,157.78,157.74,6.3394]
[1724686270104,6.3385,157.77,157.73,22.189]
[1724686270520,0.813037,157.79,157.7,37.4827]
[1724686270703,0.12549,157.78,157.7,37.4827]
[1724686271032,6.3394,157.75,157.71,6.3404]
[1724686271224,6.3388,157.76,157.71,6.3404]
[1724686271608,6.3392,157.75,157.71,6.3404]
[1724686271912,0.12549,157.77,157.7,21.6305]
[1724686272123,45.12549,157.77,157.66,21.4677]
[1724686272327,0.12549,157.75,157.66,21.4677]
[1724686272539,80.97369,157.75,157.67,6.3421]
[1724686272852,6.3412,157.7,157.66,21.4677]
[1724686273147,6.3421,157.68,157.66,21.4677]
[1724686273307,6.3421,157.68,157.63,6.3438]
[1724686273507,6.3424,157.67,157.62,28.7816]
[1724686273750,6.3424,157.67,157.63,6.3439]
[1724686273912,6.3424,157.67,157.62,28.7816]
[1724686274512,6.342,157.68,157.63,6.3439]
[1724686274751,6.342,157.68,157.64,6.3435]
[1724686275944,6.342,157.68,157.63,6.3438]
[1724686276523,6.3424,157.67,157.63,6.3438]
[1724686277141,6.3424,157.67,157.62,28.7815]
[1724686278566,6.342,157.68,157.63,6.3438]
[1724686279259,0.12549,157.71,157.63,6.3438]
[1724686279414,0.12549,157.71,157.62,16.318]
[1724686279415,65.25098,157.71,157.62,16.318]
[1724686279848,16.60909,157.69,157.59,6.3454]
[1724686280050,0.12549,157.67,157.59,6.3454]
[1724686280365,6.3438,157.64,157.59,6.3454]
[1724686280954,448.92549,157.68,157.6,6.3451]
[1724686280955,6.3432,157.65,157.6,6.3451]
[1724686282051,6.3436,157.64,157.6,6.3451]
[1724686282855,6.3436,157.64,157.59,6.3454]
[1724686283529,6.3436,157.64,157.6,6.345]
[1724686284547,6.3432,157.65,157.6,6.345]
[1724686284851,6.3435,157.64,157.6,6.345]
[1724686285550,15.98169,157.67,157.58,22.1814]
[1724686285729,6.345,157.61,157.57,16.2961]
[1724686285931,0.12549,157.63,157.54,6.0132]
[1724686286232,80.98579,157.63,157.56,6.3464]
[1724686286528,80.98579,157.63,157.54,6.0132]
[1724686286529,45.12549,157.63,157.57,6.3462]
[1724686286726,45.12549,157.63,157.54,6.0132]
[1724686286952,0.12549,157.62,157.55,15.8674]
[1724686287132,0.25098,157.62,157.55,22.2145]
[1724686288135,6.3453,157.6,157.55,22.2145]
[1724686289538,6.3449,157.61,157.55,15.8674]
[1724686289732,6.3443,157.62,157.58,6.3459]
[1724686289960,383.8,157.65,157.56,31.7337]
[1724686290143,383.8,157.68,157.56,31.7337]
[1724686290456,20.0,157.67,157.62,6.3443]
[1724686290662,6.3427,157.66,157.61,22.2058]
[1724686291247,383.8,157.72,157.64,15.8582]
[1724686291446,6.3407,157.71,157.66,6.3426]
[1724686291850,6.3413,157.7,157.65,6.3431]
[1724686292054,383.8,157.72,157.67,6.342]
[1724686292363,6.3407,157.71,157.66,6.3427]
[1724686292573,6.3403,157.73,157.68,6.3419]
[1724686292745,383.8,157.76,157.62,15.86]
[1724686292941,6.3415,157.69,157.62,15.86]
[1724686293139,6.3411,157.71,157.64,6.3431]
[1724686293462,15.8521,157.71,157.62,6.3443]
[1724686293772,45.0,157.7,157.64,6.3435]
[1724686293955,45.0,157.7,157.6,6.4255]
[1724686293956,6.3411,157.71,157.65,6.3429]
[1724686294866,0.12549,157.74,157.64,15.8585]
[1724686295063,20.25098,157.74,157.64,15.8585]
[1724686295237,0.12549,157.72,157.64,15.8585]
[1724686295437,0.25098,157.72,157.64,15.8585]
[1724686295736,6.3411,157.7,157.64,22.202]
[1724686297971,6.3431,157.65,157.6,6.4255]
[1724686298172,0.25098,157.69,157.61,6.3446]
[1724686298376,6.3423,157.67,157.61,6.3446]
[1724686298536,0.25098,157.69,157.6,6.4255]
[1724686298880,6.3435,157.65,157.6,12.7705]
[1724686299077,6.3446,157.62,157.6,6.4255]
[1724686299371,383.8,157.68,157.6,6.4255]
[1724686299372,0.12549,157.66,157.6,22.2883]
[1724686299838,0.12549,157.66,157.45,31.7557]
[1724686299839,383.8,157.65,157.53,6.3887]
[1724686300041,6.3454,157.6,157.55,6.3468]
[1724686300567,6.3456,157.59,157.54,6.3475]
[1724686301075,6.3456,157.59,157.53,6.3887]
[1724686301076,6.3463,157.57,157.53,6.3887]
[1724686301240,383.8,157.62,157.53,6.3887]
[1724686301448,6.3452,157.6,157.54,6.3475]
[1724686301659,0.12549,157.59,157.53,6.3887]
[1724686301855,45.12549,157.59,157.53,6.3887]
[1724686302071,0.12549,157.59,157.53,6.3887]
[1724686302277,0.12549,157.59,157.55,6.3471]
[1724686302989,0.12549,157.59,157.54,15.8683]
[1724686303158,0.12549,157.59,157.54,22.2158]
[1724686304171,6.346,157.58,157.54,15.8683]
[1724686304479,0.12549,157.58,157.5,31.873]
[1724686304684,6.3476,157.54,157.5,15.872]
[1724686305563,6.47269,157.55,157.5,15.872]
[1724686305767,45.0,157.54,157.5,15.872]
[1724686306365,6.47269,157.55,157.5,22.221]
[1724686307487,6.348,157.53,157.46,30.9716]
[1724686307660,0.12549,157.52,157.47,6.3503]
[1724686307856,45.12549,157.52,157.47,6.3503]
[1724686308275,6.3488,157.51,157.46,30.9716]
[1724686308555,45.12549,157.52,157.47,6.3503]
[1724686308755,6.47309,157.54,157.46,30.9716]
[1724686308985,0.12549,157.53,157.49,6.3496]
[1724686309187,0.12549,157.52,157.46,30.9716]
[1724686309393,6.47389,157.52,157.47,6.35]
[1724686309604,0.12549,157.51,157.47,6.35]
[1724686309803,6.3492,157.5,157.46,15.876]
[1724686310098,0.12549,157.49,157.46,15.876]
[1724686310604,0.12549,157.49,157.45,6.5173]
[1724686310778,45.25098,157.5,157.45,22.3944]
[1724686311099,45.25098,157.5,157.42,6.62584099]
[1724686311100,383.8,157.49,157.42,6.62584099]
[1724686311304,0.12549,157.46,157.41,15.8817]
[1724686311672,45.25098,157.46,157.41,15.8817]
[1724686311889,51.60208,157.46,157.41,22.2344]
[1724686312498,45.12549,157.46,157.42,6.3523]
[1724686312697,0.12549,157.46,157.42,6.3523]
[1724686313194,51.60178,157.46,157.42,6.3523]
[1724686313993,6.47629,157.46,157.42,6.3523]
[1724686314494,6.47629,157.46,157.38,15.885]
[1724686314495,0.12549,157.44,157.38,15.885]
[1724686314695,0.25098,157.44,157.38,15.885]
[1724686314911,0.12549,157.44,157.38,15.885]
[1724686315076,383.8,157.45,157.38,15.885]
[1724686315276,383.8,157.45,157.41,6.3527]
[1724686315474,383.8,157.45,157.4,15.8824]
[1724686315796,383.8,157.45,157.39,31.7673]
[1724686316176,6.3492,157.5,157.45,6.3508]
[1724686316402,6.3492,157.5,157.45,6.3511]
[1724686316785,6.3496,157.49,157.45,6.3511]
[1724686317377,6.3496,157.49,157.44,22.2296]
[1724686317600,6.3496,157.49,157.45,6.3511]
[1724686317908,390.1487,157.52,157.47,6.35]
[1724686319176,6.3487,157.52,157.47,6.35]
[1724686319504,15.8699,157.53,157.44,22.1506]
[1724686319699,6.3498,157.49,157.44,22.1506]
[1724686320003,6.3489,157.51,157.46,6.3507]
[1724686320207,383.8,157.52,157.48,6.3498]
[1724686320416,390.1484,157.52,157.48,6.3498]
[1724686320580,383.8,157.52,157.44,22.1506]
[1724686320906,6.3492,157.5,157.45,6.3511]
[1724686321093,6.3492,157.5,157.46,6.3506]
[1724686321477,6.47439,157.51,157.46,6.3506]
[1724686321807,6.47439,157.51,157.47,6.3503]
[1724686321985,383.8,157.52,157.44,22.1506]
[1724686322185,6.3475,157.55,157.5,6.3491]
[1724686322603,6.3476,157.54,157.5,6.3491]
[1724686322989,6.3473,157.55,157.51,6.3488]
[1724686323307,6.3472,157.55,157.49,15.8734]
[1724686324494,383.8,157.57,157.51,15.8715]
[1724686324699,390.1464,157.57,157.52,6.348]
[1724686325397,6.3476,157.54,157.5,6.349]
[1724686325593,6.3492,157.5,157.44,22.1506]
[1724686325799,6.3496,157.49,157.44,22.1506]
[1724686326111,6.3501,157.48,157.44,22.1506]
[1724686327107,6.3501,157.48,157.44,28.5022]
[1724686327400,6.47519,157.49,157.44,28.5022]
[1724686329217,0.12549,157.49,157.45,6.3511]
[1724686329519,5.05734565,157.65,157.44,22.1506]
[1724686329520,390.097,157.56,157.47,15.8756]
[1724686329836,383.8,157.56,157.49,15.8731]
[1724686330032,383.8,157.56,157.52,6.3482]
[1724686330203,383.8,157.59,157.52,6.3482]
[1724686330607,6.3468,157.56,157.51,6.3487]
[1724686331229,6.3468,157.56,157.45,30.9482806]
[1724686331230,15.866,157.57,157.46,15.8768]
[1724686331826,0.12549,157.56,157.46,15.8768]
[1724686332014,6.3484,157.52,157.47,6.35]
[1724686332902,6.47349,157.53,157.46,15.8768]
[1724686333302,6.3512,157.45,157.4,6.62569271]
[1724686333537,6.3517,157.44,157.39,22.2373]
[1724686333736,0.12549,157.43,157.37,6.3543]
[1724686334030,6.3524,157.42,157.38,6.354]
[1724686334336,6.352,157.43,157.38,6.354]
[1724686335999,35.874,157.49,157.38,15.8844]
[1724686336201,45.12549,157.48,157.38,15.8844]
[1724686336538,0.12549,157.47,157.38,15.8844]
[1724686337107,6.3513,157.45,157.38,15.8844]
[1724686338310,6.3513,157.45,157.4,6.3532]
[1724686338945,0.12549,157.47,157.38,15.8844]
[1724686339126,6.3529,157.41,157.37,6.3543]
[1724686339507,6.47799,157.42,157.37,6.3543]
[1724686340022,45.12549,157.41,157.33,6.63001077]
[1724686340205,0.12549,157.39,157.29,15.8938]
[1724686340424,20.0,157.38,157.24,0.813037]
[1724686340731,0.12549,157.39,157.24,0.813037]
[1724686340732,0.12549,157.27,157.24,0.813037]
[1724686340902,6.3581,157.28,157.24,0.813037]
[1724686341102,0.12549,157.32,157.24,16.711937]
[1724686341336,0.12549,157.31,157.24,16.711937]
[1724686341512,0.25098,157.32,157.24,23.071637]
[1724686341910,0.25098,157.32,157.24,16.711937]
[1724686342106,0.12549,157.35,157.27,15.896]
[1724686342337,45.25098,157.35,157.27,15.896]
[1724686343529,45.25098,157.35,157.3,6.357]
[1724686343835,45.25098,157.35,157.31,6.3568]